bitfinex/quotes_SOLUSD_20250802
["timestamp","ask_amount","ask_price","bid_price","bid_amount"]
[1754159280477,28.28556401,157.6,157.56,0.71]
[1754159280690,52.58,157.62,157.53,0.71]
[1754159280988,28.28556401,157.56,157.53,0.71]
[1754159281155,26.0,157.6,157.53,0.71]
[1754159281352,26.0,157.6,157.49,0.71]
[1754159281353,28.28556401,157.54,157.49,0.71]
[1754159281550,52.6,157.53,157.5,0.71]
[1754159281764,28.28556401,157.54,157.46,16.784684]
[1754159281765,52.6,157.55,157.51,0.71]
[1754159281986,28.28556401,157.52,157.48,0.71]
[1754159282290,52.62,157.54,157.46,45.07024801]
[1754159282494,28.28556401,157.54,157.48,28.28556401]
[1754159282660,28.28556401,157.53,157.47,28.99556401]
[1754159282860,26.0,157.55,157.47,28.99556401]
[1754159283056,80.84556401,157.54,157.48,28.99556401]
[1754159283289,26.0,157.55,157.49,28.99556401]
[1754159283290,52.56,157.53,157.49,28.99556401]
[1754159283451,52.56,157.53,157.49,0.71]
[1754159283651,80.84556401,157.53,157.5,0.71]
[1754159283854,26.66,157.57,157.43,28.99556401]
[1754159283855,28.28556401,157.51,157.43,28.99556401]
[1754159284083,28.28556401,157.49,157.43,28.99556401]
[1754159284386,26.66,157.56,157.46,28.28556401]
[1754159284610,0.66,157.59,157.49,28.28556401]
[1754159284763,26.0,157.55,157.49,28.99556401]
[1754159285092,28.28556401,157.54,157.49,0.71]
[1754159285289,0.66,157.59,157.5,28.28556401]
[1754159285583,28.28556401,157.54,157.48,28.99556401]
[1754159285791,52.5,157.53,157.48,28.99556401]
[1754159286015,52.48,157.52,157.5,28.28556401]
[1754159286218,52.48,157.52,157.49,0.71]
[1754159286428,52.48,157.52,157.5,0.71]
[1754159286589,52.46,157.53,157.51,28.99556401]
[1754159286787,54.28556401,157.57,157.52,0.71]
[1754159286989,52.44,157.56,157.53,0.71]
[1754159287395,52.44,157.56,157.46,17.41976589]
[1754159287396,52.44,157.56,157.51,28.28556401]
[1754159287585,52.44,157.56,157.46,17.41976589]
[1754159287786,52.44,157.56,157.51,28.28556401]
[1754159288010,7.64935804,157.66,157.53,28.28556401]
[1754159288214,26.0,157.62,157.53,28.28556401]
[1754159288387,52.4,157.65,157.5,28.28556401]
[1754159288388,28.28556401,157.56,157.5,28.28556401]
[1754159288719,52.4,157.55,157.5,28.28556401]
[1754159288884,52.4,157.55,157.51,0.71]
[1754159289085,52.4,157.55,157.52,0.71]
[1754159289320,52.4,157.55,157.54,28.28556401]
[1754159289508,52.4,157.55,157.54,28.99556401]
[1754159289707,52.4,157.55,157.54,0.71]
[1754159289894,52.4,157.55,157.52,0.71]
[1754159290090,52.4,157.55,157.54,28.28556401]
[1754159290311,28.28556401,157.61,157.54,28.99556401]
[1754159290494,28.28556401,157.56,157.51,0.71]
[1754159290703,28.28556401,157.54,157.51,0.71]
[1754159290908,52.42,157.55,157.49,0.71]
[1754159291113,28.28556401,157.52,157.46,28.34556401]
[1754159291311,28.28556401,157.53,157.47,28.28556401]
[1754159291537,28.28556401,157.55,157.49,28.28556401]
[1754159291697,52.36,157.53,157.5,0.71]
[1754159291885,52.38,157.55,157.52,28.28556401]
[1754159292091,54.28556401,157.59,157.53,28.99556401]
[1754159292287,53.04,157.58,157.49,28.99556401]
[1754159292517,53.04,157.58,157.52,28.28556401]
[1754159292518,80.64556401,157.57,157.52,28.28556401]
[1754159292829,28.28556401,157.56,157.5,28.28556401]
[1754159293004,53.02,157.57,157.5,28.28556401]
[1754159293201,28.28556401,157.56,157.5,28.28556401]
[1754159293410,28.28556401,157.56,157.46,17.47976589]
[1754159293411,0.03,157.58,157.55,28.28556401]
[1754159293614,52.48,157.57,157.55,28.28556401]
[1754159293821,0.03,157.58,157.55,28.99556401]
[1754159294125,0.03,157.58,157.55,0.71]
[1754159294292,0.03,157.58,157.5,16.78468397]
[1754159294293,28.28556401,157.56,157.5,28.28556401]
[1754159294642,53.16,157.57,157.49,28.99556401]
[1754159294799,53.16,157.57,157.49,0.71]
[1754159294800,28.28556401,157.54,157.49,0.71]
[1754159294996,0.66,157.56,157.47,28.28556401]
[1754159295331,28.28556401,157.55,157.5,28.28556401]
[1754159295706,52.5,157.54,157.5,0.71]
[1754159296247,52.5,157.54,157.46,0.06]
[1754159296248,28.28556401,157.51,157.46,0.06]
[1754159296402,52.46,157.5,157.48,28.28556401]
[1754159296594,28.28556401,157.55,157.49,28.99556401]
[1754159296792,26.66,157.57,157.46,0.06]
[1754159296793,3.29297568,157.6,157.53,28.28556401]
[1754159297094,52.48,157.57,157.53,0.71]
[1754159297307,52.48,157.57,157.5,0.71]
[1754159297508,52.48,157.57,157.56,28.28556401]
[1754159297509,52.44,157.57,157.56,28.28556401]
[1754159297721,0.03,157.58,157.56,28.28556401]
[1754159298029,52.49,157.58,157.54,0.71]
[1754159298406,52.49,157.58,157.55,0.71]
[1754159298407,0.03,157.58,157.55,0.71]
[1754159298600,52.42,157.57,157.56,28.28556401]
[1754159298919,0.03,157.58,157.56,28.28556401]
[1754159298920,0.03,157.58,157.56,28.99556401]
[1754159299094,0.03,157.58,157.57,28.99556401]
[1754159299499,0.03,157.58,157.53,0.71]
[1754159299815,0.03,157.58,157.54,28.99556401]
[1754159300002,0.03,157.58,157.5,0.63492063]
[1754159300202,0.03,157.58,157.57,28.28556401]
[1754159300402,0.03,157.58,157.57,28.99556401]
[1754159300618,52.42,157.64,157.57,29.63020258]
[1754159300831,52.42,157.64,157.62,28.28556401]
[1754159301039,52.42,157.64,157.59,0.71]
[1754159301344,52.42,157.64,157.6,0.71]
[1754159301732,28.28556401,157.62,157.57,28.28556401]
[1754159302042,28.28556401,157.62,157.56,0.71]
[1754159302043,4.45514522,157.61,157.56,0.71]
[1754159302202,28.28556401,157.59,157.54,28.28556401]
[1754159302535,85.12478937,157.58,157.52,28.28556401]
[1754159302734,85.12478937,157.58,157.51,0.71]
[1754159302735,5.04908717,157.66,157.57,28.28556401]
[1754159302954,56.80064688,157.65,157.62,28.28556401]
[1754159303126,4.46064688,157.64,157.63,0.71]
[1754159303452,52.38,157.66,157.64,0.71]
[1754159303609,4.46653828,157.65,157.63,28.28556401]
[1754159303814,52.38,157.66,157.64,28.28556401]
[1754159304047,4.46694616,157.65,157.64,28.28556401]
[1754159304350,0.66,157.71,157.64,28.28556401]
[1754159304351,0.2,157.74,157.65,19.1]
[1754159304681,0.2,157.74,157.71,28.28556401]
[1754159304860,0.2,157.74,157.66,17.41896026]
[1754159304861,0.2,157.74,157.7,28.28556401]
[1754159305006,0.2,157.74,157.62,16.78468397]
[1754159305007,28.28556401,157.72,157.62,16.78468397]
[1754159305203,52.32,157.73,157.69,28.28556401]
[1754159305407,52.98,157.73,157.69,28.28556401]
[1754159305645,52.98,157.73,157.64,16.78468397]
[1754159305646,0.66,157.72,157.64,16.78468397]
[1754159305807,0.66,157.72,157.52,9.54931699]
[1754159305808,28.28556401,157.71,157.59,26.0]
[1754159306016,52.32,157.73,157.59,26.0]
[1754159306017,28.94556401,157.7,157.64,28.28556401]
[1754159306426,0.66,157.7,157.65,28.28556401]
[1754159306635,53.04,157.69,157.65,28.28556401]
[1754159306843,0.66,157.68,157.57,0.63463857]
[1754159307156,28.94556401,157.68,157.58,16.78468397]
[1754159307444,0.66,157.68,157.63,28.28556401]
[1754159307630,0.66,157.68,157.58,16.78468397]
[1754159307631,0.66,157.71,157.66,28.28556401]
[1754159307837,0.66,157.7,157.66,28.28556401]
[1754159308018,53.0,157.7,157.67,28.28556401]
[1754159308217,52.98,157.69,157.65,28.28556401]
[1754159308446,0.66,157.68,157.6,16.78468397]
[1754159308755,28.28556401,157.66,157.53,0.63479972]
[1754159308961,78.32,157.69,157.53,0.63479972]
[1754159308962,28.28556401,157.64,157.53,0.63479972]
[1754159309139,52.28,157.63,157.58,28.28556401]
[1754159309332,52.94,157.63,157.59,28.28556401]
[1754159309533,52.94,157.63,157.6,28.28556401]
[1754159309733,52.94,157.63,157.53,0.63479972]
[1754159309965,21.81244198,157.72,157.62,28.28556401]
[1754159309966,0.66,157.66,157.62,28.28556401]
[1754159310135,0.66,157.66,157.57,0.63463857]
[1754159310136,0.66,157.65,157.57,0.63463857]
[1754159310324,0.66,157.65,157.62,28.28556401]
[1754159310529,0.66,157.65,157.57,0.63463857]
[1754159310867,52.24,157.66,157.63,28.28556401]
[1754159311044,52.94,157.69,157.65,28.28556401]
[1754159311223,0.72,157.68,157.57,0.63463857]
[1754159311427,29.00556401,157.68,157.62,28.28556401]
[1754159311641,0.72,157.68,157.59,0.63455803]
[1754159311844,0.72,157.68,157.66,28.28556401]
[1754159312033,0.72,157.67,157.59,0.63455803]
[1754159312241,0.72,157.67,157.64,28.28556401]
[1754159312517,0.72,157.66,157.64,28.28556401]
[1754159312739,0.72,157.65,157.57,0.63463857]
[1754159312948,0.2,157.74,157.65,16.78468397]
[1754159312949,0.72,157.72,157.65,16.78468397]
[1754159313137,0.72,157.73,157.69,28.28556401]
[1754159313323,28.28556401,157.7,157.59,26.0]
[1754159313649,0.72,157.71,157.57,0.63463857]
[1754159313650,28.28556401,157.68,157.58,16.78468397]
[1754159313953,0.72,157.67,157.6,28.28556401]
[1754159314128,80.60556401,157.66,157.6,28.28556401]
[1754159314323,29.00556401,157.65,157.59,28.28556401]
[1754159314554,29.00556401,157.65,157.54,0.63475942]
[1754159314555,29.00556401,157.64,157.53,0.06]
[1754159315046,29.00556401,157.64,157.58,28.28556401]
[1754159315047,0.72,157.63,157.58,28.28556401]
[1754159315248,78.32,157.66,157.59,28.28556401]
[1754159315249,0.72,157.62,157.59,28.28556401]
[1754159315458,0.72,157.61,157.53,17.47948369]
[1754159315643,0.72,157.61,157.59,28.28556401]
[1754159315846,52.32,157.64,157.6,28.28556401]
[1754159316018,26.72,157.66,157.63,28.28556401]
[1754159316222,0.03,157.67,157.56,28.28556401]
[1754159316223,52.37,157.67,157.62,28.28556401]
[1754159316430,0.72,157.65,157.62,28.28556401]
[1754159316666,52.37,157.67,157.53,16.84468397]
[1754159316667,0.72,157.64,157.53,16.84468397]
[1754159316820,28.28556401,157.62,157.56,28.28556401]
[1754159317026,53.12,157.61,157.56,28.28556401]
[1754159317223,0.72,157.6,157.53,0.06]
[1754159317449,0.72,157.63,157.54,0.63475942]
[1754159317649,0.03,157.67,157.62,28.28556401]
[1754159317828,0.03,157.67,157.66,28.28556401]
[1754159319037,0.03,157.67,157.66,45.07024798]
[1754159319937,0.03,157.67,157.63,0.634397]
[1754159320135,0.03,157.67,157.66,28.28556401]
[1754159320954,0.03,157.67,157.63,16.78468397]
[1754159321160,0.03,157.67,157.66,28.28556401]
[1754159321658,0.03,157.67,157.64,0.63435676]
[1754159321826,0.03,157.67,157.66,28.28556401]
[1754159322831,0.03,157.67,157.66,45.07024798]
[1754159323345,0.03,157.67,157.66,28.28556401]
[1754159323567,0.03,157.67,157.66,45.07024798]
[1754159323879,0.2,157.74,157.68,73.35581199]
[1754159324072,0.2,157.74,157.73,28.28556401]
[1754159324476,0.2,157.74,157.73,71.07024798]
[1754159324698,0.72,157.82,157.81,28.28556401]
[1754159325002,0.72,157.85,157.81,28.28556401]
[1754159325218,0.72,157.85,157.84,28.28556401]
[1754159325494,0.75,157.87,157.84,28.28556401]
[1754159325700,0.75,157.87,157.86,28.28556401]
[1754159325701,0.03,157.87,157.86,28.28556401]
[1754159325913,0.03,157.87,157.78,0.63379389]
[1754159325914,0.75,157.87,157.78,0.63379389]
[1754159326195,0.03,157.87,157.86,28.28556401]
[1754159327582,0.03,157.87,157.83,0.6335931]
[1754159327771,0.03,157.87,157.86,28.28556401]
[1754159328792,0.03,157.87,157.81,0.6336734]
[1754159328793,0.03,157.87,157.82,16.78468397]
[1754159329093,0.72,157.86,157.76,10.63387423]
[1754159329302,0.72,157.86,157.84,28.28556401]
[1754159329504,0.72,157.86,157.85,28.28556401]
[1754159329802,0.75,157.87,157.84,28.28556401]
[1754159330101,0.72,157.86,157.84,28.28556401]
[1754159330306,0.03,157.87,157.81,28.28556401]
[1754159330503,0.72,157.85,157.83,28.28556401]
[1754159330804,0.03,157.87,157.73,16.78468397]
[1754159330805,0.72,157.84,157.73,16.78468397]
[1754159331017,0.72,157.84,157.61,21.10908514]
[1754159331018,0.72,157.84,157.74,28.28556401]
[1754159331173,28.28556401,157.82,157.77,28.28556401]
[1754159331376,28.28556401,157.82,157.69,28.28556401]
[1754159331377,81.50556401,157.81,157.76,28.28556401]
[1754159331683,0.72,157.8,157.76,28.28556401]
[1754159331875,52.5,157.81,157.71,16.78468397]
[1754159331876,0.72,157.79,157.71,16.78468397]
[1754159332078,0.72,157.79,157.67,0.63423606]
[1754159332282,29.00556401,157.79,157.74,28.28556401]
[1754159332588,0.72,157.78,157.74,28.28556401]
[1754159332894,0.72,157.77,157.73,28.28556401]
[1754159333094,0.72,157.76,157.72,28.28556401]
[1754159333292,28.28556401,157.78,157.72,28.28556401]
[1754159333293,0.72,157.75,157.72,28.28556401]
[1754159333598,0.72,157.75,157.71,28.28556401]
[1754159333782,26.0,157.8,157.66,16.78468397]
[1754159333783,0.72,157.74,157.66,16.78468397]
[1754159334208,0.72,157.74,157.71,28.28556401]
[1754159334382,0.72,157.73,157.71,28.28556401]
[1754159334892,28.28556401,157.76,157.7,28.28556401]
[1754159335077,0.72,157.72,157.69,28.28556401]
[1754159335490,0.72,157.72,157.7,28.28556401]
[1754159335708,0.72,157.72,157.69,28.28556401]
[1754159335884,0.72,157.71,157.69,28.28556401]
[1754159336599,0.72,157.71,157.69,28.34556401]
[1754159337011,0.72,157.7,157.69,0.06]
[1754159338323,80.60556401,157.73,157.69,0.06]
[1754159338324,52.32,157.73,157.69,0.06]
[1754159338488,0.72,157.7,157.69,0.06]
[1754159338815,0.72,157.72,157.69,28.34556401]
[1754159339113,52.1,157.71,157.69,28.34556401]
[1754159339315,0.72,157.72,157.7,28.28556401]
[1754159339613,52.06,157.72,157.7,28.28556401]
[1754159340309,0.72,157.75,157.69,0.06]
[1754159340490,0.72,157.75,157.73,28.28556401]
[1754159340491,52.02,157.74,157.73,28.28556401]
[1754159340691,52.02,157.74,157.69,0.06]
[1754159341114,45.74,157.79,157.73,28.28556401]
[1754159341305,45.74,157.79,157.71,0.6340752]
[1754159341306,97.76,157.79,157.71,0.6340752]
[1754159341485,0.7,157.78,157.76,28.28556401]
[1754159341804,0.7,157.78,157.71,0.6340752]
[1754159341805,97.76,157.79,157.77,28.28556401]
[1754159342009,16.36436198,157.87,157.71,0.6340752]
[1754159342010,26.7,157.81,157.78,28.28556401]
[1754159342198,5.05775801,157.87,157.71,0.6340752]
[1754159342199,0.7,157.85,157.71,0.6340752]
[1754159342399,52.16,157.84,157.74,16.78468397]
[1754159342622,0.7,157.83,157.72,0.63403499]
[1754159342919,52.16,157.84,157.75,0.63391442]
[1754159343122,52.16,157.84,157.82,28.28556401]
[1754159343420,0.03,157.87,157.75,17.41859839]
[1754159343421,0.73,157.87,157.75,17.41859839]
[1754159343599,0.03,157.87,157.86,28.28556401]
[1754159344120,0.03,157.87,157.81,16.78468397]
[1754159344326,0.03,157.87,157.86,28.28556401]
[1754159345699,0.03,157.87,157.82,0.63363325]
[1754159346046,0.7,157.86,157.8,0.63371356]
[1754159346343,28.28556401,157.84,157.79,28.28556401]
[1754159346499,0.7,157.83,157.79,28.28556401]
[1754159346701,0.7,157.82,157.73,0.6339948]
[1754159346927,0.7,157.82,157.79,28.28556401]
[1754159347110,0.7,157.81,157.78,28.28556401]
[1754159347314,80.38556401,157.83,157.78,28.28556401]
[1754159347315,0.7,157.8,157.78,28.28556401]
[1754159347526,28.98556401,157.79,157.72,28.28556401]
[1754159347826,0.7,157.78,157.73,28.28556401]
[1754159348026,52.8,157.77,157.73,28.28556401]
[1754159348227,0.7,157.76,157.69,0.06]
[1754159348603,0.7,157.76,157.73,28.28556401]
[1754159349031,0.7,157.75,157.72,28.28556401]
[1754159349203,0.7,157.75,157.69,0.06]
[1754159349393,52.1,157.77,157.74,28.28556401]
[1754159349599,52.1,157.77,157.69,0.69415562]
[1754159349806,52.8,157.77,157.72,28.28556401]
[1754159350028,0.7,157.76,157.72,28.28556401]
[1754159350198,52.1,157.77,157.74,28.28556401]
[1754159350393,52.04,157.77,157.75,28.28556401]
[1754159350611,52.74,157.77,157.69,0.69415562]
[1754159350837,52.74,157.77,157.72,28.28556401]
[1754159351007,0.7,157.76,157.73,28.28556401]
[1754159351206,52.04,157.77,157.69,0.06]
[1754159351430,0.7,157.75,157.7,28.28556401]
[1754159351642,0.7,157.74,157.69,28.34556401]
[1754159351825,0.7,157.73,157.69,28.34556401]
[1754159352134,51.98,157.72,157.71,28.28556401]
[1754159352307,51.98,157.74,157.71,28.28556401]
[1754159352504,52.68,157.74,157.71,28.28556401]
[1754159352703,51.96,157.75,157.73,28.28556401]
[1754159353633,0.7,157.78,157.74,28.28556401]
[1754159353943,5.02775801,157.85,157.69,0.69415562]
[1754159353944,54.28556401,157.82,157.76,28.28556401]
[1754159354101,52.58,157.81,157.76,28.28556401]
[1754159354298,0.7,157.8,157.76,28.28556401]
[1754159354502,0.7,157.79,157.76,28.28556401]
[1754159355320,0.7,157.78,157.75,28.28556401]
[1754159355999,0.7,157.78,157.69,17.47883959]
[1754159356414,28.98556401,157.78,157.72,28.28556401]
[1754159356619,0.7,157.77,157.73,28.28556401]
[1754159356806,51.88,157.81,157.76,28.28556401]
[1754159356807,0.7,157.81,157.76,28.28556401]
[1754159357012,52.42,157.8,157.77,28.28556401]
[1754159357437,52.42,157.8,157.71,0.6340752]
[1754159357740,52.42,157.8,157.76,28.28556401]
[1754159358039,0.7,157.79,157.77,28.28556401]
[1754159358403,0.7,157.78,157.76,28.28556401]
[1754159358600,51.72,157.8,157.69,28.34556401]
[1754159358601,0.7,157.77,157.69,28.34556401]
[1754159358849,0.7,157.77,157.75,28.28556401]
[1754159359008,51.72,157.8,157.76,28.28556401]
[1754159359336,51.64,157.81,157.79,28.28556401]
[1754159359632,51.64,157.81,157.8,28.28556401]
[1754159359828,52.34,157.81,157.8,28.28556401]
[1754159360004,52.34,157.81,157.79,28.28556401]
[1754159360205,0.7,157.8,157.72,0.69403499]
[1754159360421,0.7,157.8,157.76,28.28556401]
[1754159360623,77.64,157.81,157.76,28.28556401]
[1754159360932,0.7,157.79,157.77,28.28556401]
[1754159361144,51.56,157.79,157.78,28.28556401]
[1754159361347,51.54,157.79,157.78,28.28556401]
[1754159361526,52.24,157.79,157.77,28.28556401]
[1754159361722,52.24,157.78,157.77,28.28556401]
[1754159362049,0.03,157.85,157.77,28.28556401]
[1754159362252,28.28556401,157.82,157.77,28.28556401]
[1754159362558,30.7481566,157.81,157.77,28.28556401]
[1754159362851,0.7,157.84,157.8,28.28556401]
[1754159363151,51.56,157.83,157.74,16.78468397]
[1754159363317,51.56,157.83,157.76,16.78468397]
[1754159363517,51.56,157.83,157.77,0.63383406]
[1754159364231,51.56,157.83,157.82,28.28556401]
[1754159364627,0.03,157.85,157.82,28.28556401]
[1754159364818,0.03,157.85,157.84,28.28556401]
[1754159365522,0.03,157.85,157.81,0.6336734]
[1754159365718,0.7,157.84,157.78,16.78468397]
[1754159365920,0.7,157.84,157.77,0.63383406]
[1754159366236,0.7,157.84,157.81,28.28556401]
[1754159366546,0.7,157.84,157.82,28.28556401]
[1754159366853,0.03,157.85,157.83,28.28556401]
[1754159367033,0.03,157.85,157.84,28.28556401]
[1754159368452,0.03,157.85,157.83,28.28556401]
[1754159368868,0.73,157.85,157.78,0.63379389]
[1754159369028,0.73,157.85,157.82,28.28556401]
[1754159369556,0.7,157.84,157.82,28.28556401]
[1754159369767,0.03,157.85,157.83,28.28556401]
[1754159369939,0.03,157.85,157.84,28.28556401]
[1754159370143,0.73,157.85,157.81,28.28556401]
[1754159370666,0.73,157.85,157.76,0.63387423]
[1754159370667,0.7,157.84,157.76,0.63387423]
[1754159370846,51.3,157.86,157.79,28.28556401]
[1754159371046,28.28556401,157.84,157.75,0.71]
[1754159371243,51.3,157.86,157.77,28.28556401]
[1754159371490,0.03,157.87,157.82,28.28556401]
[1754159371650,0.03,157.87,157.78,1.32379389]
[1754159371651,51.26,157.85,157.78,1.32379389]
[1754159371831,51.26,157.85,157.81,28.28556401]
[1754159372043,51.26,157.85,157.78,1.32379389]
[1754159372345,79.54556401,157.85,157.76,0.69]
[1754159372560,51.26,157.85,157.8,28.28556401]
[1754159372777,51.26,157.85,157.76,1.32387423]
[1754159372778,0.66,157.84,157.76,1.32387423]
[1754159372980,0.66,157.84,157.76,0.69]
[1754159373141,0.66,157.84,157.73,16.78468397]
[1754159373142,28.94556401,157.84,157.78,28.28556401]
[1754159373483,28.94556401,157.84,157.72,0.06]
[1754159373484,28.28556401,157.79,157.72,0.06]
[1754159373643,51.72,157.78,157.73,28.28556401]
[1754159373839,52.38,157.78,157.74,28.28556401]
[1754159374042,51.72,157.78,157.74,28.28556401]
[1754159374264,0.66,157.77,157.72,0.06]
[1754159374468,0.66,157.77,157.74,28.28556401]
[1754159374937,51.72,157.78,157.75,28.28556401]
[1754159375277,5.02775801,157.86,157.72,0.06]
[1754159375278,51.66,157.79,157.77,28.28556401]
[1754159375462,51.66,157.79,157.76,0.69]
[1754159375463,51.66,157.79,157.78,28.28556401]
[1754159375854,28.31556401,157.87,157.78,28.28556401]
[1754159376078,56.33578179,157.86,157.83,28.28556401]
[1754159376279,52.28,157.86,157.83,28.28556401]
[1754159377074,0.66,157.85,157.78,0.69]
[1754159377398,0.66,157.85,157.82,28.28556401]
[1754159377593,0.03,157.87,157.84,28.28556401]
[1754159377755,0.03,157.87,157.8,28.28556401]
[1754159377756,28.28556401,157.85,157.8,28.28556401]
[1754159377956,0.66,157.84,157.8,28.28556401]
[1754159378378,0.66,157.84,157.81,28.28556401]
[1754159378595,0.66,157.86,157.81,28.28556401]
[1754159378773,0.66,157.85,157.77,1.32383406]
[1754159378971,0.66,157.85,157.83,28.28556401]
[1754159380164,0.66,157.85,157.82,28.28556401]
[1754159380699,0.66,157.85,157.83,28.28556401]
[1754159380863,0.66,157.85,157.82,28.28556401]
[1754159381188,4.74536021,157.87,157.83,28.28556401]
[1754159381397,0.66,157.86,157.83,28.28556401]
[1754159381614,0.66,157.86,157.84,28.28556401]
[1754159381767,0.66,157.86,157.78,1.32379389]
[1754159381768,0.03,157.87,157.85,28.28556401]
[1754159382188,4.09149308,157.87,157.85,28.28556401]
[1754159382787,4.09149308,157.87,157.86,28.28556401]
[1754159382788,0.03,157.87,157.86,28.28556401]
[1754159383469,0.03,157.87,157.84,0.63355296]
[1754159383658,0.03,157.87,157.86,28.28556401]
[1754159383858,0.03,157.87,157.81,1.3236734]
[1754159384264,0.03,157.87,157.81,0.69]
[1754159384466,0.03,157.87,157.78,0.63379389]
[1754159384467,0.03,157.87,157.84,28.28556401]
[1754159384689,0.66,157.86,157.84,28.28556401]
[1754159384897,0.66,157.86,157.79,0.69]
[1754159384898,52.0,157.86,157.79,0.69]
[1754159385105,52.0,157.86,157.81,28.28556401]
[1754159385106,4.06698478,157.85,157.81,28.28556401]
[1754159385266,0.66,157.84,157.81,28.28556401]
[1754159385472,0.66,157.84,157.76,1.32387423]
[1754159385677,0.66,157.84,157.82,28.28556401]
[1754159386001,4.06698478,157.85,157.83,28.28556401]
[1754159386002,51.26,157.85,157.83,28.28556401]
[1754159386174,0.03,157.87,157.84,28.97556401]
[1754159386372,0.03,157.87,157.86,28.28556401]
[1754159386883,0.03,157.87,157.84,0.69]
[1754159387186,0.03,157.87,157.86,28.28556401]
[1754159387687,0.03,157.87,157.86,28.97556401]
[1754159388066,0.03,157.87,157.86,28.28556401]
[1754159390479,0.03,157.87,157.85,28.28556401]
[1754159390663,0.69,157.87,157.85,28.28556401]
[1754159390868,28.94556401,157.86,157.77,26.69]
[1754159391114,28.28556401,157.84,157.79,28.28556401]
[1754159391317,4.72725903,157.83,157.79,28.28556401]
[1754159391519,0.66,157.82,157.78,28.28556401]
[1754159391686,0.66,157.82,157.8,28.28556401]
[1754159392014,4.72725903,157.84,157.81,28.28556401]
[1754159392176,51.1,157.83,157.81,28.28556401]
[1754159392382,51.1,157.83,157.75,16.84468397]
[1754159392383,0.66,157.82,157.78,28.28556401]
[1754159392583,51.1,157.83,157.8,28.28556401]
[1754159393820,51.1,157.83,157.75,0.06]
[1754159393821,33.01278886,157.82,157.75,0.06]
[1754159394018,4.06722485,157.81,157.76,28.28556401]
[1754159394189,0.66,157.8,157.77,28.28556401]
[1754159394518,0.66,157.79,157.77,28.28556401]
[1754159394723,4.06722485,157.81,157.77,28.28556401]
[1754159394912,4.72722485,157.82,157.79,28.28556401]
[1754159395216,4.72722485,157.82,157.78,28.28556401]
[1754159395528,0.66,157.81,157.78,28.28556401]
[1754159396614,0.66,157.81,157.75,0.06]
[1754159396913,4.06722485,157.82,157.79,28.28556401]
[1754159397331,4.72722485,157.82,157.79,28.28556401]
[1754159398021,4.72722485,157.82,157.81,28.28556401]
[1754159398022,4.06722485,157.82,157.81,28.28556401]
[1754159398224,50.92,157.83,157.81,28.28556401]
[1754159398388,50.92,157.83,157.77,0.69]
[1754159398612,50.92,157.83,157.81,28.28556401]
[1754159398815,50.92,157.83,157.77,0.69]
[1754159398816,51.58,157.83,157.8,28.28556401]
[1754159399036,51.58,157.83,157.81,28.28556401]
[1754159399313,51.58,157.83,157.82,28.28556401]
[1754159399314,50.92,157.83,157.82,28.28556401]
[1754159399510,50.92,157.83,157.79,0.69]
[1754159399730,50.82,157.84,157.82,28.28556401]
[1754159400119,26.0,157.85,157.83,28.28556401]
[1754159400322,50.76,157.86,157.8,0.69]
[1754159400528,4.07654449,157.85,157.81,28.28556401]
[1754159400759,28.28556401,157.83,157.75,0.06]
[1754159400948,26.66,157.84,157.82,18.60184894]
[1754159401113,50.76,157.82,157.78,0.7]
[1754159401320,5.05775801,157.87,157.81,18.60184894]
[1754159401321,0.03,157.87,157.81,18.60184894]